bitfinex/quotes_BTCUSD_20250129
["timestamp","ask_amount","ask_price","bid_price","bid_amount"]
[1738177937399,0.00029925,101750.0,101740.0,1.28271373]
[1738177937635,0.00029925,101750.0,101740.0,1.01499716]
[1738177937864,0.00078157,101750.0,101740.0,1.30271373]
[1738177938093,0.00078157,101750.0,101740.0,1.29271373]
[1738177938322,0.00078157,101750.0,101740.0,1.30271373]
[1738177938553,0.343845,101790.0,101770.0,0.540416]
[1738177938793,0.147362,101790.0,101780.0,0.147365]
[1738177939013,0.196483,101790.0,101770.0,0.19652]
[1738177939279,0.196444,101810.0,101780.0,0.196498]
[1738177939527,0.147347,101800.0,101780.0,0.44110116]
[1738177939763,0.147347,101800.0,101790.0,0.147362]
[1738177940233,0.343811,101800.0,101780.0,0.49049716]
[1738177940468,0.540275,101800.0,101780.0,0.44109716]
[1738177940908,0.147362,101790.0,101770.0,0.395016]
[1738177941118,0.205483,101790.0,101770.0,0.24677021]
[1738177941343,0.205483,101790.0,101770.0,0.24477021]
[1738177941344,0.147376,101780.0,101770.0,0.24477021]
[1738177941561,0.147376,101780.0,101770.0,0.00014405]
[1738177942239,0.343852,101790.0,101770.0,0.44128621]
[1738177942485,0.001,101790.0,101780.0,0.147376]
[1738177942710,0.343855,101790.0,101770.0,0.44327421]
[1738177942930,0.001,101780.0,101770.0,0.24676921]
[1738177944299,0.245238,101810.0,101780.0,0.343873]
[1738177944506,0.147347,101800.0,101790.0,0.19648]
[1738177944730,0.589038,101810.0,101790.0,0.343839]
[1738177944962,0.34381,101800.0,101780.0,0.44110216]
[1738177945183,0.001,101780.0,101770.0,0.34403905]
[1738177945397,0.540296,101800.0,101770.0,0.44328221]
[1738177945650,0.343819,101800.0,101780.0,0.34484839]
[1738177945898,0.352819,101800.0,101780.0,0.34484839]
[1738177946122,0.392565,101810.0,101790.0,0.343831]
[1738177946566,0.392566,101810.0,101790.0,0.540311]
[1738177946784,0.147347,101800.0,101790.0,0.147362]
[1738177946998,0.392567,101810.0,101790.0,0.44108516]
[1738177947209,0.147347,101800.0,101780.0,0.343868]
[1738177947433,0.147347,101800.0,101780.0,0.44111116]
[1738177947685,0.34381,101800.0,101780.0,0.44111116]
[1738177947938,0.147376,101780.0,101770.0,0.00014405]
[1738177948459,0.24561916,101780.0,101770.0,0.00014405]
[1738177949521,0.24461916,101780.0,101770.0,0.00014405]
[1738177949760,0.51351916,101780.0,101770.0,0.00014405]
[1738177950005,0.51351916,101780.0,101720.0,0.616662]
[1738177950006,0.147449,101730.0,101720.0,0.196604]
[1738177950243,0.147449,101730.0,101700.0,0.43795907]
[1738177950244,0.196602,101730.0,101700.0,0.2730905]
[1738177950481,0.393213,101730.0,101710.0,0.147478]
[1738177950728,0.54067,101730.0,101710.0,0.34411]
[1738177950963,0.54067,101730.0,101710.0,0.147478]
[1738177950964,0.196602,101730.0,101710.0,0.147478]
[1738177951236,0.343969,101760.0,101740.0,0.147431]
[1738177951492,0.34410261,101760.0,101740.0,0.44125316]
[1738177951743,0.00014461,101760.0,101730.0,0.147438]
[1738177951988,0.00014461,101760.0,101720.0,0.147456]
[1738177951989,0.147449,101730.0,101720.0,0.147456]
[1738177952303,0.147463,101720.0,101710.0,0.196626]
[1738177952535,0.147478,101710.0,101700.0,0.1476345]
[1738177952822,0.344088,101720.0,101710.0,0.147478]
[1738177953105,0.540717,101720.0,101700.0,0.44152166]
[1738177953425,0.147478,101710.0,101700.0,0.24487766]
[1738177953659,0.54086856,101720.0,101700.0,0.44153366]
[1738177953911,0.147478,101710.0,101700.0,0.0001425]
[1738177954173,0.34423956,101720.0,101700.0,0.1476345]
[1738177954410,0.00014456,101720.0,101710.0,0.149478]
[1738177954708,0.14760756,101720.0,101710.0,0.15046106]
[1738177954872,0.14760756,101720.0,101700.0,0.63816666]
[1738177955105,0.00114456,101720.0,101710.0,0.147478]
[1738177955367,0.00114456,101720.0,101710.0,0.14846107]
[1738177955608,0.14760756,101720.0,101710.0,0.14846107]
[1738177955833,0.14860756,101720.0,101710.0,0.147478]
[1738177956099,0.00214456,101720.0,101710.0,0.147478]
[1738177956358,0.00114456,101720.0,101710.0,0.24570424]
[1738177956597,0.00114456,101720.0,101710.0,0.24472116]
[1738177956839,0.00114456,101720.0,101710.0,1.74472116]
[1738177957316,0.00114456,101720.0,101710.0,1.97262116]
[1738177957556,0.00114456,101720.0,101710.0,2.01842116]
[1738177957772,0.00114456,101720.0,101710.0,2.12842116]
[1738177957982,0.34419625,101780.0,101710.0,0.52394316]
[1738177958192,0.58963918,101780.0,101760.0,0.34393]
[1738177958437,0.147411,101760.0,101740.0,0.147421]
[1738177958646,0.04922418,101780.0,101760.0,0.19654]
[1738177958860,0.04922418,101780.0,101770.0,0.147391]
[1738177959073,0.04922418,101780.0,101770.0,0.24561666]
[1738177959305,0.04922418,101780.0,101770.0,0.24463416]
[1738177959513,0.06222418,101780.0,101770.0,0.24463416]
[1738177959753,0.06222418,101780.0,101750.0,0.196559]
[1738177959987,0.343934,101770.0,101750.0,0.44121816]
[1738177960211,0.147405,101760.0,101750.0,0.14742]
[1738177960668,0.343951,101760.0,101750.0,0.14742]
[1738177960903,0.147405,101760.0,101750.0,0.14742]
[1738177961380,0.343946,101760.0,101740.0,0.540557]
[1738177961593,0.393095,101760.0,101740.0,0.44123316]
[1738177961809,0.34399,101750.0,101730.0,0.344031]
[1738177962023,0.147434,101740.0,101730.0,0.29383116]
[1738177962230,0.147434,101740.0,101730.0,0.24469216]
[1738177962450,0.393142,101750.0,101730.0,0.24469216]
[1738177962671,0.343999,101750.0,101730.0,0.63788716]
[1738177962907,0.343999,101750.0,101740.0,0.002]
[1738177964441,0.343999,101750.0,101730.0,0.543632]
[1738177964657,0.147434,101740.0,101730.0,0.007]
[1738177964907,0.147434,101740.0,101730.0,0.004]
[1738177965146,0.147429,101750.0,101720.0,0.00098291]
[1738177965363,0.147429,101750.0,101730.0,0.44126716]
[1738177965568,0.34399,101750.0,101740.0,0.003]
[1738177965784,0.343938,101770.0,101750.0,0.147415]
[1738177965986,0.00014488,101760.0,101750.0,0.196559]
[1738177966196,0.00014488,101760.0,101750.0,0.29380216]
[1738177966414,0.34409988,101760.0,101740.0,0.540561]
[1738177966614,0.14742,101750.0,101740.0,0.24467016]
[1738177967018,0.34410988,101760.0,101740.0,0.44124616]
[1738177967227,0.14742,101750.0,101740.0,0.24467016]
[1738177967471,0.14742,101750.0,101740.0,0.09724316]
[1738177967678,0.343984,101750.0,101730.0,0.540603]
[1738177967891,0.393136,101750.0,101730.0,0.44126916]
[1738177968105,0.540569,101750.0,101730.0,0.44126916]
[1738177968324,0.343997,101750.0,101740.0,0.001]
[1738177968511,0.540568,101750.0,101730.0,0.44126916]
[1738177969008,0.147434,101740.0,101730.0,0.24868716]
[1738177969199,0.147434,101740.0,101730.0,0.10024316]
[1738177969433,0.147434,101740.0,101730.0,0.004]
[1738177970476,0.147434,101740.0,101730.0,0.001]
[1738177970726,0.344058,101730.0,101710.0,0.54172902]
[1738177970981,0.344022,101740.0,101730.0,0.001]
[1738177971210,0.34410288,101760.0,101740.0,0.147434]
[1738177971426,0.14742,101750.0,101730.0,0.44126216]
[1738177971646,0.343983,101750.0,101740.0,0.147434]
[1738177971857,0.14742,101750.0,101740.0,0.147434]
[1738177972090,0.147434,101740.0,101730.0,0.09724316]
[1738177972323,0.149434,101740.0,101730.0,0.24567503]
[1738177972564,0.147434,101740.0,101730.0,0.24469216]
[1738177972786,0.540577,101750.0,101730.0,0.44129016]
[1738177973006,0.540577,101750.0,101730.0,0.24469216]
[1738177973276,0.19868588,101760.0,101720.0,0.147452]
[1738177973490,0.344056,101730.0,101710.0,0.59042]
[1738177973703,0.147469,101720.0,101710.0,0.09724316]
[1738177973947,0.344087,101720.0,101700.0,0.3442795]
[1738177974160,0.147469,101720.0,101700.0,0.63816966]
[1738177974373,0.344088,101720.0,101700.0,0.63816966]
[1738177974589,0.344088,101720.0,101700.0,0.44152266]
[1738177974590,0.540716,101720.0,101700.0,0.44152266]
[1738177974807,0.344088,101720.0,101700.0,0.63816766]
[1738177975022,0.540675,101730.0,101710.0,0.24471516]
[1738177975218,0.147463,101720.0,101710.0,0.09724316]
[1738177975458,0.147463,101720.0,101710.0,0.10124316]
[1738177975673,0.147463,101720.0,101710.0,0.008]
[1738177975908,0.147463,101720.0,101710.0,0.004]
[1738177976613,0.34431883,101740.0,101720.0,0.147453]
[1738177976835,0.00029883,101740.0,101730.0,0.24567504]
[1738177977056,0.00029883,101740.0,101730.0,0.39469216]
[1738177977269,0.00029883,101740.0,101730.0,1.89469216]
[1738177977944,0.00029883,101740.0,101730.0,0.39469216]
[1738177978157,0.00029883,101740.0,101730.0,0.39769216]
[1738177978373,0.00029883,101740.0,101730.0,0.40169216]
[1738177978589,0.00029883,101740.0,101730.0,0.39869216]
[1738177978819,0.00029883,101740.0,101730.0,0.89416216]
[1738177979039,0.00029883,101740.0,101730.0,1.02416216]
[1738177979040,8.3e-07,101740.0,101730.0,1.02416216]
[1738177979281,8.3e-07,101740.0,101730.0,1.24756216]
[1738177979507,0.00029925,101780.0,101770.0,0.147391]
[1738177979725,0.34419025,101780.0,101770.0,0.4913]
[1738177980175,0.44143341,101780.0,101770.0,0.4913]
[1738177980397,0.34419025,101780.0,101770.0,0.4913]
[1738177980844,0.34433518,101780.0,101770.0,0.4913]
[1738177981281,0.00144418,101780.0,101770.0,0.73593416]
[1738177981509,0.00144418,101780.0,101770.0,0.73693416]
[1738177981719,0.00744418,101780.0,101770.0,0.73693416]
[1738177983720,0.00044418,101780.0,101770.0,0.73593416]
[1738177984188,0.00444418,101780.0,101770.0,0.73593416]
[1738177985482,0.00444418,101780.0,101770.0,0.79403416]
[1738177985704,1.8e-07,101780.0,101770.0,1.02203416]
[1738177985920,1.8e-07,101780.0,101770.0,1.19550693]
[1738177986138,1.8e-07,101780.0,101770.0,2.69550693]
[1738177986356,0.00029925,101820.0,101790.0,0.16]
[1738177986593,0.0004441,101820.0,101810.0,0.24457616]
[1738177987494,0.0004441,101820.0,101810.0,0.41930078]
[1738177987734,0.0004441,101820.0,101810.0,0.91041078]
[1738177987946,0.0004441,101820.0,101810.0,1.02241078]
[1738177988380,0.0004441,101820.0,101810.0,1.59274978]
[1738177988610,0.0004441,101820.0,101810.0,1.56266678]
[1738177988836,0.00029925,101840.0,101830.0,0.297304]
[1738177989045,0.00029925,101840.0,101830.0,0.88555716]
[1738177989264,0.00029925,101840.0,101830.0,0.89555716]
[1738177989474,0.00029925,101840.0,101830.0,0.92184037]
[1738177990344,0.00029925,101840.0,101830.0,0.96914037]
[1738177990788,0.00029925,101840.0,101830.0,0.97514037]
[1738177991175,0.00029925,101840.0,101830.0,0.97414037]
[1738177991374,0.00029925,101840.0,101830.0,0.98314037]
[1738177991844,0.00029925,101840.0,101830.0,0.96914037]
[1738177992044,0.00029925,101840.0,101830.0,1.12791712]
[1738177992663,0.00029925,101840.0,101830.0,0.94285716]
[1738177992898,0.00029925,101840.0,101830.0,0.95285716]
[1738177993316,0.00029925,101840.0,101830.0,0.94685716]
[1738177993524,0.00029925,101840.0,101830.0,0.97814037]
[1738177993733,0.00029925,101840.0,101830.0,0.95685716]
[1738177993944,0.00029925,101840.0,101830.0,0.99827491]
[1738177994149,0.00029925,101840.0,101830.0,0.97514037]
[1738177994382,0.00029925,101840.0,101830.0,0.99927491]
[1738177994572,0.00029925,101840.0,101830.0,2.54777791]
[1738177994981,0.00029925,101840.0,101830.0,4.05177791]
[1738177995186,0.00029925,101840.0,101830.0,3.93277791]
[1738177995460,0.00029925,101840.0,101830.0,1.22614891]
[1738177995697,0.00029925,101840.0,101830.0,1.03894028]
[1738177995957,0.00029925,101840.0,101830.0,0.73955716]
[1738177996166,0.14758825,101840.0,101830.0,0.59225316]
[1738177996592,0.00029925,101840.0,101830.0,0.59825316]
[1738177996799,0.14758825,101840.0,101830.0,0.50101]
[1738177997031,0.14758825,101840.0,101830.0,0.49101]
[1738177997235,0.14758825,101840.0,101830.0,0.49401]
[1738177997435,0.14758825,101840.0,101830.0,0.49901]
[1738177997942,0.14758825,101840.0,101830.0,0.49401]
[1738177998190,0.00029925,101840.0,101830.0,0.73555716]
[1738177998404,0.00529925,101840.0,101830.0,0.58925316]
[1738177998619,0.00529925,101840.0,101830.0,0.73655716]
[1738177998837,0.14958825,101840.0,101830.0,0.58925316]
[1738177999047,0.15358825,101840.0,101830.0,0.58925316]
[1738177999310,0.00629925,101840.0,101830.0,0.73655716]
[1738177999740,0.00429925,101840.0,101830.0,0.73555716]
[1738177999939,0.00429925,101840.0,101830.0,0.73655716]
[1738178000144,0.15458825,101840.0,101830.0,0.73655716]
[1738178000360,0.15058825,101840.0,101830.0,0.73555716]
[1738178000602,0.15058825,101840.0,101830.0,0.49101]
[1738178000815,0.15358825,101840.0,101830.0,0.49101]
[1738178002771,0.32883141,101840.0,101830.0,0.49101]
[1738178003448,0.37733141,101840.0,101830.0,0.49101]
[1738178003878,0.37733141,101840.0,101830.0,0.488016]
[1738178004089,0.28008825,101840.0,101830.0,0.488016]
[1738178004521,0.27408825,101840.0,101830.0,0.488016]
[1738178004959,0.27408825,101840.0,101830.0,0.489016]
[1738178004960,0.37733141,101840.0,101830.0,0.489016]
[1738178005170,0.43033141,101840.0,101830.0,0.001]
[1738178005384,0.57633141,101840.0,101830.0,0.001]
[1738178005599,0.57211141,101840.0,101830.0,0.001]
[1738178005888,0.05107925,101840.0,101830.0,0.09824316]
[1738178006102,0.05107925,101840.0,101820.0,0.3438802]
[1738178006103,0.39276125,101840.0,101820.0,0.3438802]
[1738178006329,0.39276125,101840.0,101820.0,0.44112336]
[1738178006547,0.147304,101830.0,101820.0,0.0001422]
[1738178006986,0.61786373,101830.0,101820.0,0.0001422]
[1738178007196,0.92284607,101830.0,101820.0,0.0001422]
[1738178007407,0.82456373,101830.0,101820.0,0.0001422]
[1738178007623,0.343898,101780.0,101760.0,0.147405]
[1738178007835,0.343898,101780.0,101760.0,0.44133301]
[1738178008047,0.147391,101770.0,101760.0,0.24479301]
[1738178008258,0.147391,101770.0,101760.0,0.09738801]
[1738178008491,0.147391,101770.0,101760.0,0.00014485]
[1738178008921,0.196483,101790.0,101760.0,0.24677166]
[1738178008922,0.343851,101790.0,101760.0,0.24677166]
[1738178009149,0.325766,101800.0,101760.0,0.24578901]
[1738178009150,0.147391,101770.0,101760.0,0.24578901]
[1738178009364,0.147391,101770.0,101760.0,0.00114485]
[1738178009583,0.147391,101770.0,101760.0,0.14854985]
[1738178009826,0.147391,101770.0,101760.0,0.00114485]
[1738178010260,0.147391,101770.0,101760.0,0.00014485]
[1738178010496,0.148391,101770.0,101760.0,0.00014485]
[1738178010698,0.148391,101770.0,101760.0,0.00114485]
[1738178010930,0.148391,101770.0,101760.0,0.14854985]
[1738178011137,0.148391,101770.0,101760.0,0.00014485]
[1738178011357,0.148391,101770.0,101760.0,0.00114485]
[1738178012026,0.148391,101770.0,101760.0,0.00014485]
[1738178012282,0.148391,101770.0,101760.0,0.14854985]
[1738178012500,0.148391,101770.0,101760.0,0.14869205]
[1738178013336,0.001,101770.0,101760.0,0.14869205]
[1738178013545,0.148391,101770.0,101760.0,0.14869205]
[1738178013978,0.148391,101770.0,101760.0,0.24691787]
[1738178013979,0.001,101770.0,101760.0,0.24691787]
[1738178014190,0.001,101770.0,101760.0,0.39593521]
[1738178016069,0.001,101770.0,101760.0,0.65365178]
[1738178016317,0.001,101770.0,101760.0,0.70665178]
[1738178016573,0.0007,101770.0,101760.0,0.70565178]
[1738178016830,0.343722,101830.0,101810.0,0.343759]
[1738178017086,0.147318,101820.0,101810.0,0.147333]
[1738178017333,0.343732,101830.0,101810.0,0.147333]
[1738178017582,0.147318,101820.0,101810.0,0.343765]
[1738178017817,0.54015,101830.0,101810.0,0.343765]
[1738178018074,0.147315,101830.0,101820.0,0.147318]
[1738178018320,0.34373,101830.0,101810.0,0.63744016]
[1738178018566,0.34373,101830.0,101820.0,0.147318]
[1738178019284,0.34373,101830.0,101810.0,0.63845016]
[1738178019529,0.34473,101830.0,101810.0,0.63844116]
[1738178019779,0.34373,101830.0,101810.0,0.63744116]
[1738178020017,0.34773,101830.0,101810.0,0.44100816]
[1738178020253,0.006,101830.0,101820.0,0.24554325]
[1738178020462,0.00029925,101840.0,101830.0,0.147304]
[1738178020676,0.00029925,101840.0,101830.0,0.24454716]
[1738178022007,0.14758825,101840.0,101830.0,0.24454716]
[1738178022228,0.00029925,101840.0,101830.0,0.24454716]
[1738178022464,0.14758825,101840.0,101820.0,1.181203]
[1738178022681,0.00029925,101840.0,101820.0,1.27844816]
[1738178022903,0.00029925,101840.0,101830.0,0.149304]
[1738178023125,0.00029925,101840.0,101830.0,0.24454716]
[1738178023352,0.00029925,101840.0,101830.0,0.24754716]
[1738178023577,0.00129925,101840.0,101830.0,0.25254716]
[1738178023801,0.00029925,101840.0,101830.0,0.39454716]
[1738178024026,0.00029925,101840.0,101830.0,1.01035716]
[1738178024238,0.00029925,101840.0,101830.0,1.01235716]
[1738178024445,0.00029925,101840.0,101830.0,0.88755716]
[1738178024892,0.00029925,101840.0,101830.0,0.89055716]
[1738178025541,0.00029925,101840.0,101830.0,0.88855716]
[1738178025766,0.00029925,101840.0,101830.0,0.89055716]
[1738178026649,0.00029925,101840.0,101830.0,0.88855716]
[1738178026863,0.00029925,101840.0,101830.0,0.89355716]
[1738178026864,0.00129925,101840.0,101830.0,0.89355716]
[1738178032789,0.00129925,101840.0,101830.0,0.91655716]
[1738178033877,0.00129925,101840.0,101830.0,0.89355716]
[1738178034965,0.00129925,101840.0,101830.0,0.74355716]
[1738178035157,0.14858825,101840.0,101830.0,0.74355716]
[1738178035369,0.14858825,101840.0,101830.0,0.59625316]
[1738178035576,0.14858825,101840.0,101830.0,0.74355716]
[1738178035786,0.14858825,101840.0,101830.0,0.59325316]
[1738178036002,0.14858825,101840.0,101830.0,0.49601]
[1738178036219,0.14758825,101840.0,101830.0,0.49401]
[1738178036627,0.14858825,101840.0,101830.0,0.49401]
[1738178037038,0.14858825,101840.0,101830.0,0.49101]
[1738178037249,0.14858825,101840.0,101830.0,0.49201]
[1738178037666,0.00129925,101840.0,101830.0,0.639314]
[1738178037875,0.00129925,101840.0,101830.0,0.73655716]
[1738178038716,0.14858825,101840.0,101830.0,0.73655716]
[1738178038931,0.00129925,101840.0,101830.0,0.73655716]
[1738178039973,0.00129925,101840.0,101830.0,0.88655716]
[1738178040595,0.00129925,101840.0,101830.0,1.07611481]
[1738178041485,0.00029925,101850.0,101840.0,0.5485043]
[1738178041702,0.00029925,101850.0,101840.0,1.28671746]
[1738178041912,0.00029925,101850.0,101840.0,2.62015981]
[1738178042131,0.00029925,101850.0,101840.0,2.45360216]
[1738178042358,0.00029925,101850.0,101840.0,0.90850216]
[1738178042817,0.00029925,101850.0,101840.0,1.29228847]
[1738178042818,0.00129925,101850.0,101840.0,1.29228847]
[1738178043038,2.5e-07,101850.0,101840.0,1.48278847]
[1738178043252,5e-07,101860.0,101850.0,0.173]
[1738178043469,0.00048324,101860.0,101850.0,1.18620583]
[1738178043682,2.4e-07,101860.0,101850.0,1.63156547]
[1738178043967,2.4e-07,101860.0,101850.0,0.92843816]
[1738178044179,2.4e-07,101860.0,101850.0,1.29522447]
[1738178044391,2.4e-07,101860.0,101850.0,1.39522447]
[1738178045055,7e-08,101870.0,101860.0,1.13429131]
[1738178045271,8.3e-07,101870.0,101860.0,1.41675947]
[1738178045708,8e-08,101890.0,101880.0,0.53401831]
[1738178045936,8e-08,101890.0,101880.0,1.16503147]
[1738178046165,8e-08,101890.0,101880.0,0.90824516]
[1738178047113,8e-08,101890.0,101880.0,1.16503147]
[1738178047376,8e-08,101890.0,101880.0,1.5302158]
[1738178047632,8e-08,101890.0,101880.0,1.5800158]
[1738178047854,0.00029925,101910.0,101900.0,0.147203]
[1738178048092,0.00044396,101910.0,101900.0,0.78539023]
[1738178048315,0.00044396,101910.0,101900.0,0.73512616]
[1738178048757,0.00044396,101910.0,101900.0,0.88512616]
[1738178048980,0.00044396,101910.0,101900.0,0.73512616]
[1738178049194,0.00044396,101910.0,101900.0,0.73912616]
[1738178049421,0.00144396,101910.0,101900.0,0.74812616]
[1738178049627,0.00144396,101910.0,101900.0,0.74412616]
[1738178050061,0.00144396,101910.0,101900.0,0.74712616]
[1738178051178,0.00144396,101910.0,101900.0,0.74412616]
[1738178051405,0.00044396,101910.0,101900.0,0.73512616]
[1738178051644,0.14863196,101910.0,101900.0,0.50068]
[1738178051862,0.00044396,101910.0,101900.0,0.73712616]
[1738178052084,0.00044396,101910.0,101900.0,0.73512616]
[1738178052296,0.00044396,101910.0,101900.0,0.73712616]
[1738178052508,0.00044396,101910.0,101900.0,0.88612616]
[1738178052728,0.00044396,101910.0,101900.0,0.90912616]
[1738178052941,0.00144396,101910.0,101900.0,0.90812616]
[1738178053157,0.00044396,101910.0,101900.0,1.37711247]
[1738178053371,9.6e-07,101910.0,101900.0,2.34289247]
[1738178053590,9.6e-07,101910.0,101900.0,1.40439559]
[1738178053798,0.00029883,101920.0,101910.0,1.33305431]
[1738178054007,0.00029883,101920.0,101910.0,1.8755968]
[1738178054233,8.3e-07,101920.0,101910.0,2.1305968]
[1738178054450,0.00029968,101950.0,101940.0,0.147145]
[1738178054666,0.00029968,101950.0,101940.0,0.73486816]
[1738178054667,0.00044436,101950.0,101940.0,0.73486816]
[1738178055090,0.00044436,101950.0,101940.0,0.88486816]
[1738178055306,0.00044436,101950.0,101940.0,1.16465447]
[1738178055758,0.00144436,101950.0,101940.0,1.17265447]
[1738178056201,0.00044436,101950.0,101940.0,1.31185447]
[1738178056419,0.00144436,101950.0,101940.0,2.93285447]
[1738178056599,0.00144436,101950.0,101940.0,2.80285447]
[1738178056885,0.00144436,101950.0,101940.0,1.30285447]
[1738178057114,0.00144436,101950.0,101940.0,1.40285447]
[1738178057325,0.00144436,101950.0,101940.0,2.93285447]
[1738178057963,3.6e-07,101950.0,101940.0,3.23492847]
[1738178058173,0.01596803,101980.0,101970.0,0.297102]
[1738178058386,0.0164502,101980.0,101970.0,0.24434516]
[1738178059695,0.1645372,101980.0,101970.0,0.09724316]
[1738178059920,0.147125,101960.0,101940.0,0.833801]
[1738178060130,0.14713,101950.0,101940.0,0.58772316]
[1738178060344,0.392332,101960.0,101940.0,0.73486816]
[1738178060345,0.53946,101960.0,101940.0,0.73486816]
[1738178060566,0.53946,101960.0,101940.0,0.73486516]
[1738178060785,0.14713,101950.0,101940.0,0.49048]
[1738178061219,0.619858,101960.0,101940.0,0.74586716]
[1738178061438,0.619858,101960.0,101940.0,0.74600916]
[1738178061688,0.14742821,101950.0,101940.0,0.59586516]
[1738178061920,0.00029821,101950.0,101940.0,0.74301016]
[1738178062143,0.00029821,101950.0,101940.0,0.73801016]
[1738178062364,0.00129821,101950.0,101940.0,0.91901016]
[1738178062585,0.00129821,101950.0,101940.0,1.37692647]
[1738178062793,0.00129821,101950.0,101940.0,1.57692647]
[1738178062794,2.1e-07,101950.0,101940.0,1.57692647]
[1738178063020,2.1e-07,101950.0,101940.0,1.37479647]
[1738178063684,0.0164502,101980.0,101950.0,0.173]
[1738178063899,0.0164502,101980.0,101970.0,0.67413147]
[1738178064112,0.0164502,101980.0,101970.0,1.16447147]
[1738178064563,0.00035904,101990.0,101980.0,0.430087]
[1738178064786,0.00035904,101990.0,101980.0,2.10475916]
[1738178064787,6.1e-07,101990.0,101980.0,2.10475916]
[1738178064999,6.1e-07,101990.0,101980.0,3.42480647]
[1738178065217,6.1e-07,101990.0,101980.0,3.45493806]
[1738178065435,6.1e-07,101990.0,101980.0,3.42480647]
[1738178065871,6.1e-07,101990.0,101980.0,3.45060768]
[1738178066086,0.00029968,102020.0,102010.0,0.77683031]
[1738178066313,0.00029968,102020.0,102010.0,1.17617347]
[1738178066543,0.06661307,102050.0,102020.0,0.173]
[1738178066810,0.00029821,102060.0,102050.0,0.15]
[1738178067027,0.0156692,102090.0,102080.0,0.55372931]
[1738178067241,0.0156692,102090.0,102080.0,0.39418616]
[1738178067451,0.0156692,102090.0,102080.0,0.88399616]
[1738178067452,0.01615158,102090.0,102080.0,0.88399616]
[1738178068093,0.01615158,102090.0,102080.0,0.90699616]
[1738178068300,0.01615158,102090.0,102080.0,0.90799616]
[1738178068506,0.01644979,102090.0,102080.0,1.10799616]
[1738178068718,0.01644979,102090.0,102080.0,1.10899616]
[1738178068942,0.01644979,102090.0,102080.0,2.76578247]
[1738178069149,0.01644979,102090.0,102080.0,0.90899616]
[1738178070331,0.01644979,102090.0,102080.0,0.88599616]
[1738178070586,0.01644979,102090.0,102080.0,0.58805316]
[1738178070844,0.16337879,102090.0,102080.0,0.49481]
[1738178071101,0.16337879,102090.0,102080.0,0.49381]
[1738178071606,0.16337879,102090.0,102080.0,0.49181]
[1738178071861,0.16337879,102090.0,102080.0,0.49081]
[1738178072120,0.16337879,102090.0,102080.0,0.48981]
[1738178072378,0.195945,102070.0,102030.0,0.196009]
[1738178072607,0.538865,102070.0,102040.0,0.4412099]
[1738178072866,0.146972,102060.0,102040.0,0.09724316]
[1738178073126,0.146986,102050.0,102040.0,0.098223]
[1738178073371,0.342922,102070.0,102040.0,0.245224]
[1738178073613,0.146974,102060.0,102040.0,0.098223]
[1738178073867,0.146974,102060.0,102040.0,0.441224]
[1738178074115,0.195955,102070.0,102050.0,0.146984]
[1738178074116,0.342922,102070.0,102050.0,0.146984]
[1738178074370,0.14710165,102070.0,102060.0,0.09724316]
[1738178074605,0.34304665,102070.0,102050.0,0.24422716]
[1738178074848,0.14710165,102070.0,102050.0,0.24422716]
[1738178075100,0.14710165,102070.0,102050.0,0.09724316]
[1738178075101,0.34304565,102070.0,102050.0,0.09724316]
[1738178075368,0.19608865,102070.0,102040.0,0.004]
[1738178075611,0.47394465,102070.0,102050.0,0.09824316]
[1738178075854,0.146972,102060.0,102050.0,0.09824316]
[1738178076107,0.00014465,102070.0,102050.0,0.44217899]
[1738178076363,0.00014465,102070.0,102060.0,0.14795166]
[1738178076591,0.00014465,102070.0,102060.0,0.41819482]
[1738178076801,0.00014465,102070.0,102060.0,0.24724316]
[1738178076985,0.00014465,102070.0,102060.0,0.09724316]
[1738178077264,0.00014465,102070.0,102060.0,0.24519483]
[1738178077518,0.00014465,102070.0,102060.0,0.41721516]
[1738178077810,0.00014465,102070.0,102060.0,0.77400147]
[1738178078069,0.00114465,102070.0,102060.0,0.67400147]
[1738178078329,0.00114465,102070.0,102060.0,0.41721516]
[1738178078583,0.00114465,102070.0,102060.0,0.24724316]
[1738178078870,0.14710165,102070.0,102060.0,0.24724316]
[1738178079123,0.00014465,102070.0,102060.0,0.39421516]
[1738178079376,0.00014465,102070.0,102060.0,0.39521516]
[1738178079626,0.00014465,102070.0,102060.0,0.41821516]
[1738178080360,0.00014465,102070.0,102060.0,0.41921516]
[1738178080597,0.00014465,102070.0,102060.0,0.67600147]
[1738178081347,0.00014465,102070.0,102060.0,0.87600147]
[1738178081857,0.00014465,102070.0,102060.0,1.54279847]
[1738178082039,6.5e-07,102070.0,102060.0,2.04267847]
[1738178082305,0.01596741,102090.0,102060.0,2.04267847]
[1738178082306,4.1e-07,102090.0,102080.0,0.539943]
[1738178082532,6e-05,102130.0,102120.0,0.146886]
[1738178082745,6e-05,102130.0,102120.0,1.16353547]
[1738178082976,0.00054199,102130.0,102120.0,1.26353547]
[1738178083193,0.00054199,102130.0,102120.0,0.73686316]
[1738178083415,0.14741299,102130.0,102120.0,0.58686316]
[1738178083630,0.14741299,102130.0,102120.0,0.48962]
[1738178083843,0.342743,102120.0,102090.0,0.342811]
[1738178084065,0.47291899,102130.0,102110.0,0.146898]
[1738178084281,0.00083978,102130.0,102120.0,0.007]
[1738178084505,0.53937178,102130.0,102110.0,0.43999316]
[1738178084729,0.53937178,102130.0,102110.0,0.24414116]
[1738178084955,0.34554078,102130.0,102110.0,0.44000816]
[1738178085173,0.34354078,102130.0,102110.0,0.44000216]
[1738178085401,0.146886,102120.0,102110.0,0.09724316]
[1738178085615,0.19586,102120.0,102110.0,0.001]
[1738178085851,0.342746,102120.0,102110.0,0.001]
[1738178086960,0.342776,102110.0,102090.0,0.29790739]
[1738178087149,0.391738,102110.0,102090.0,0.24822255]
[1738178087398,0.146914,102100.0,102090.0,0.24724316]
[1738178087607,0.146914,102100.0,102090.0,0.09724316]
[1738178088259,0.146929,102090.0,102080.0,0.00097946]
[1738178088515,0.538712,102100.0,102080.0,0.24418516]
[1738178088729,0.146929,102090.0,102080.0,0.09822265]
[1738178088938,0.146929,102090.0,102080.0,0.09724316]
[1738178089151,0.195914,102090.0,102070.0,0.0001418]
[1738178089370,0.538773,102090.0,102070.0,0.24532155]
[1738178089574,0.5392547,102090.0,102070.0,0.24532155]
[1738178089802,0.146943,102080.0,102070.0,0.09836455]
[1738178090017,0.146943,102080.0,102070.0,0.09738496]
[1738178090435,0.146943,102080.0,102070.0,0.0001418]
[1738178091097,0.146943,102080.0,102070.0,0.0021418]
[1738178091307,0.146943,102080.0,102070.0,0.0011418]
[1738178091516,0.1474227,102090.0,102070.0,0.24433996]